bitfinex/quotes_SOLUSD_20250206
["timestamp","ask_amount","ask_price","bid_price","bid_amount"]
[1738873221871,0.11190353,191.14,191.13,30.44694079]
[1738873224462,0.11190353,191.14,191.13,31.69792079]
[1738873224670,0.11190353,191.14,191.13,33.60801623]
[1738873225248,0.11487878,191.18,191.17,1.73957]
[1738873225454,0.03,191.26,191.19,22.48859]
[1738873225755,0.03,191.26,191.19,53.56651993]
[1738873225956,0.03,191.26,191.19,51.78224079]
[1738873226887,0.03,191.26,191.19,57.01254079]
[1738873228176,0.03,191.26,191.19,58.01254079]
[1738873228355,0.03,191.26,191.19,57.01254079]
[1738873228554,0.03,191.26,191.19,58.01254079]
[1738873228881,0.03,191.26,191.19,57.01254079]
[1738873229080,0.03,191.26,191.19,58.01254079]
[1738873229271,0.03,191.26,191.19,57.01254079]
[1738873229881,0.14485619,191.2,191.19,57.01254079]
[1738873231788,0.14485619,191.2,191.19,25.08945079]
[1738873231985,0.14485619,191.2,191.19,1.3631]
[1738873232191,0.14485619,191.2,191.19,21.3631]
[1738873232572,0.14485619,191.2,191.19,45.21494079]
[1738873233087,0.14485619,191.2,191.19,50.44524079]
[1738873233291,0.14485619,191.2,191.19,50.57073079]
[1738873233494,0.14485619,191.2,191.19,50.69622079]
[1738873233658,0.14485619,191.2,191.19,52.48055213]
[1738873233865,0.14485619,191.2,191.19,53.60604213]
[1738873234187,5.619e-05,191.2,191.19,90.74424145]
[1738873234365,5.619e-05,191.2,191.19,227.94424145]
[1738873234697,5.619e-05,191.2,191.19,229.69692594]
[1738873234887,0.03,191.26,191.25,2.73957]
[1738873235064,0.03,191.26,191.25,47.24992462]
[1738873235264,0.13096487,191.26,191.25,47.24992462]
[1738873236171,0.13096487,191.26,191.25,52.22764462]
[1738873236962,0.13096487,191.26,191.25,51.44364079]
[1738873237655,0.13096487,191.26,191.25,53.60421733]
[1738873237859,9.83e-06,191.28,191.27,17.27690853]
[1738873238060,0.13550639,191.3,191.29,37.27690853]
[1738873238283,0.03,191.36,191.32,2.73957]
[1738873238476,0.03,191.36,191.32,48.37510123]
[1738873238671,0.03,191.36,191.33,17.27690853]
[1738873238986,0.03,191.36,191.33,26.59141079]
[1738873239195,0.03,191.36,191.33,25.46592079]
[1738873239483,0.03,191.36,191.33,25.21494079]
[1738873240282,0.03,191.36,191.33,1.3631]
[1738873240976,23.75635079,191.36,191.33,1.3631]
[1738873241178,1.71089353,191.34,191.33,1.3631]
[1738873241687,0.14309353,191.34,191.33,25.08945079]
[1738873241880,0.14309353,191.34,191.33,25.21494079]
[1738873242059,0.14309353,191.34,191.33,30.69242079]
[1738873242266,0.14309353,191.34,191.33,31.69242079]
[1738873243393,0.14309353,191.34,191.33,25.21494079]
[1738873243566,0.14309353,191.34,191.33,30.44144079]
[1738873243771,0.14309353,191.34,191.33,32.81791079]
[1738873243966,0.14309353,191.34,191.33,31.81791079]
[1738873245989,0.14309353,191.34,191.33,32.81791079]
[1738873246168,0.14309353,191.34,191.33,46.22975932]
[1738873246368,0.03,191.4,191.39,2.86506]
[1738873246689,0.03,191.4,191.39,65.51296536]
[1738873246870,0.03,191.4,191.39,27.37476604]
[1738873247187,0.03,191.4,191.39,26.37476604]
[1738873247491,0.03,191.4,191.39,25.46592079]
[1738873248183,0.03,191.4,191.39,30.69082079]
[1738873248371,0.03,191.4,191.39,25.34043079]
[1738873248570,0.03,191.4,191.39,30.56533079]
[1738873249562,0.03,191.4,191.39,31.81631079]
[1738873249778,0.03,191.4,191.39,70.73799492]
[1738873249982,0.03,191.4,191.39,57.32614639]
[1738873250207,0.03,191.4,191.39,31.5997956]
[1738873250371,0.03,191.4,191.39,30.69082079]
[1738873251212,0.03,191.4,191.39,25.34043079]
[1738873251376,0.03,191.4,191.39,1.48859]
[1738873251570,0.03,191.4,191.39,1.3631]
[1738873252295,0.03,191.4,191.39,6.71349]
[1738873252589,0.03,191.4,191.39,32.59984898]
[1738873252789,0.03,191.4,191.39,31.59984898]
[1738873252987,0.03,191.4,191.39,31.81631079]
[1738873253172,0.03,191.4,191.39,31.5997664]
[1738873253371,0.03,191.4,191.39,32.5997664]
[1738873253578,0.03,191.4,191.39,31.5997664]
[1738873253777,0.03,191.4,191.39,32.5997664]
[1738873254091,0.03,191.4,191.39,46.01161493]
[1738873254280,0.03,191.4,191.39,72.35046572]
[1738873254473,0.03,191.46,191.42,21.73957]
[1738873254685,0.03,191.46,191.42,46.59141079]
[1738873255309,0.13661176,191.43,191.42,46.59141079]
[1738873256182,0.13661176,191.43,191.42,45.34043079]
[1738873256676,0.13661176,191.43,191.42,21.48859]
[1738873257074,0.13661176,191.43,191.42,45.21494079]
[1738873257790,0.13661176,191.43,191.42,50.69002079]
[1738873257981,0.13661176,191.43,191.42,52.59881547]
[1738873258188,0.13661176,191.43,191.42,66.010664]
[1738873261694,0.13661176,191.43,191.42,67.96593065]
[1738873262215,0.1075725,191.47,191.42,67.96593065]
[1738873262216,1.5662,191.55,191.48,1.48859]
[1738873262379,6.1149,191.56,191.48,39.78629556]
[1738873262886,29.84125079,191.56,191.48,25.34043079]
[1738873263073,6.1149,191.56,191.48,25.34043079]
[1738873263282,6.1149,191.56,191.48,40.78635789]
[1738873264197,6.1149,191.56,191.48,30.68832079]
[1738873264502,6.1149,191.56,191.48,25.21494079]
[1738873264503,1.6788566,191.52,191.48,25.21494079]
[1738873264879,1.66829498,191.5,191.48,1.3631]
[1738873265076,1.67688303,191.49,191.48,1.3631]
[1738873265275,0.11028303,191.49,191.48,1.3631]
[1738873265883,0.14028303,191.49,191.48,1.3631]
[1738873267106,23.83880739,191.52,191.48,1.3631]
[1738873267310,1.5292,191.51,191.5,0.3631]
[1738873267611,45.25555079,191.51,191.48,0.3631]
[1738873267784,23.72635079,191.49,191.48,0.3631]
[1738873268501,23.72635079,191.49,191.48,1.3631]
[1738873268701,23.72635079,191.49,191.48,0.3631]
[1738873268883,23.72635079,191.49,191.48,1.3631]
[1738873269083,25.29295079,191.49,191.48,1.3631]
[1738873269309,25.29295079,191.49,191.48,0.3631]
[1738873269607,25.29295079,191.49,191.47,0.3631]
[1738873269608,31.88275079,191.49,191.47,0.3631]
[1738873269914,23.72635079,191.48,191.46,0.3631]
[1738873270098,23.72635079,191.47,191.46,0.3631]
[1738873270285,23.72635079,191.47,191.46,1.3631]
[1738873270486,12.073,191.49,191.47,1.0]
[1738873270487,23.72635079,191.48,191.47,1.0]
[1738873270699,23.72635079,191.48,191.47,1.3631]
[1738873271092,35.79935079,191.49,191.48,0.3631]
[1738873271294,35.79935079,191.49,191.47,1.0]
[1738873271295,35.79935079,191.49,191.47,1.3631]
[1738873271492,23.72635079,191.48,191.47,0.3631]
[1738873271694,23.72635079,191.48,191.47,1.3631]
[1738873272704,0.1124566,191.52,191.51,0.3631]
[1738873272891,0.1124566,191.52,191.51,1.3631]
[1738873273388,0.1124566,191.52,191.51,25.08945079]
[1738873273585,0.1124566,191.52,191.51,25.21494079]
[1738873273787,0.1124566,191.52,191.51,25.34043079]
[1738873274382,0.1124566,191.52,191.51,1.3631]
[1738873275215,0.22327114,191.52,191.51,1.3631]
[1738873276310,0.22327114,191.52,191.51,1.48859]
[1738873276612,0.11081454,191.52,191.51,32.59604625]
[1738873276788,0.11081454,191.52,191.51,31.59604625]
[1738873277887,0.04305248,191.56,191.55,1.48859]
[1738873278117,0.04305248,191.56,191.55,25.21494079]
[1738873278723,0.04305248,191.56,191.55,1.48859]
[1738873280110,0.04305248,191.56,191.55,1.3631]
[1738873282282,0.04305248,191.56,191.55,0.3631]
[1738873282485,23.76940327,191.56,191.55,1.3631]
[1738873282692,23.76940327,191.56,191.53,1.3631]
[1738873282892,23.72635079,191.54,191.51,1.3631]
[1738873283115,13.45490101,191.56,191.5,1.3631]
[1738873283289,1.5664,191.51,191.5,1.3631]
[1738873283899,1.5664,191.51,191.44,23.85184079]
[1738873283900,25.29275079,191.51,191.49,1.3631]
[1738873284096,23.72635079,191.5,191.48,0.3631]
[1738873284301,23.72635079,191.49,191.47,0.3631]
[1738873284507,23.72635079,191.49,191.45,1.0]
[1738873284508,23.72635079,191.48,191.46,0.3631]
[1738873284691,23.72635079,191.47,191.46,0.3631]
[1738873285313,25.29315079,191.47,191.46,0.3631]
[1738873285512,1.5668,191.47,191.46,1.3631]
[1738873285713,1.5668,191.47,191.46,0.3631]
[1738873285893,1.5668,191.47,191.46,1.3631]
[1738873286092,1.5668,191.47,191.46,0.3631]
[1738873286623,23.72635079,191.53,191.51,1.0]
[1738873286810,23.72635079,191.53,191.52,1.3631]
[1738873286811,1.5663,191.53,191.52,1.3631]
[1738873287928,25.29265079,191.53,191.52,0.3631]
[1738873288126,25.29265079,191.53,191.5,1.3631]
[1738873288335,1.5663,191.53,191.52,1.0]
[1738873288625,1.5662,191.54,191.51,1.3631]
[1738873288799,23.72635079,191.52,191.51,1.0]
[1738873289004,23.72635079,191.52,191.51,1.3631]
[1738873289509,23.72635079,191.53,191.51,1.3631]
[1738873289723,23.72635079,191.53,191.52,1.0]
[1738873289919,1.5662,191.54,191.53,1.3631]
[1738873290223,25.29255079,191.54,191.53,1.3631]
[1738873290626,25.29255079,191.54,191.52,1.3631]
[1738873290803,23.72635079,191.53,191.49,1.0]
[1738873290992,1.5662,191.54,191.49,0.3631]
[1738873290993,23.72635079,191.5,191.49,0.3631]
[1738873291193,23.72635079,191.5,191.49,1.3631]
[1738873291432,23.72635079,191.5,191.48,1.0]
[1738873291727,23.72635079,191.49,191.47,1.0]
[1738873291892,23.72635079,191.48,191.46,1.3631]
[1738873292089,23.72635079,191.47,191.45,1.3631]
[1738873292392,20.0,191.5,191.45,1.0]
[1738873292393,23.72635079,191.46,191.45,1.0]
[1738873292606,23.72635079,191.46,191.43,1.0]
[1738873292815,23.72635079,191.44,191.42,0.063]
[1738873293153,23.72635079,191.43,191.42,0.063]
[1738873293338,37.13819932,191.43,191.42,0.0001]
[1738873294315,20.0,191.39,191.35,8.11346045]
[1738873294500,23.72635079,191.36,191.35,8.11346045]
[1738873294819,23.72635079,191.36,191.33,1.0]
[1738873295000,23.72635079,191.34,191.32,1.3631]
[1738873295196,23.72635079,191.33,191.32,1.0]
[1738873295397,23.82163736,191.34,191.33,1.0]
[1738873295704,23.82163736,191.34,191.32,1.0]
[1738873295918,0.09528657,191.34,191.33,1.0]
[1738873296129,0.09528657,191.34,191.33,45.59141079]
[1738873296298,0.09528657,191.34,191.33,52.60167491]
[1738873296634,0.00438674,191.35,191.34,14.27690853]
[1738873296933,0.10795703,191.37,191.36,37.27690853]
[1738873297112,0.10795703,191.37,191.36,61.78674638]
[1738873298239,0.10795703,191.37,191.36,66.01244638]
[1738873298544,0.10795703,191.37,191.36,67.01244638]
[1738873298858,0.10364223,191.43,191.38,1.73957]
[1738873299161,0.10364223,191.43,191.38,25.46592079]
[1738873299446,0.10364223,191.43,191.38,1.3631]
[1738873299827,1.66854684,191.41,191.38,1.3631]
[1738873300023,23.82759763,191.41,191.38,1.3631]
[1738873300215,0.10124684,191.41,191.38,1.3631]
[1738873300413,1.68156829,191.4,191.38,1.3631]
[1738873300644,0.11416829,191.4,191.38,1.3631]
[1738873300827,1.68146829,191.4,191.38,1.3631]
[1738873301030,25.39325325,191.39,191.37,1.0]
[1738873301235,23.72635079,191.38,191.34,1.3631]
[1738873301440,23.72635079,191.35,191.33,0.3631]
[1738873301661,23.72635079,191.34,191.32,0.3631]
[1738873301819,23.72635079,191.33,191.31,1.3631]
[1738873302014,23.72635079,191.32,191.31,1.0]
[1738873302518,25.29445079,191.32,191.3,1.3631]
[1738873302824,23.72635079,191.31,191.29,0.3631]
[1738873303052,25.29445079,191.32,191.3,1.3631]
[1738873303367,23.72635079,191.31,191.29,1.3631]
[1738873303835,23.72635079,191.3,191.28,1.3631]
[1738873304225,23.72635079,191.3,191.28,1.0]
[1738873304448,23.72635079,191.3,191.29,1.3631]
[1738873304640,38.41573004,191.3,191.29,1.3631]
[1738873304846,38.41573004,191.3,191.29,0.3631]
[1738873305723,38.41573004,191.3,191.28,1.0]
[1738873306050,38.41573004,191.29,191.26,0.063]
[1738873306360,38.41573004,191.27,191.26,0.063]
[1738873306523,39.98413004,191.27,191.26,0.063]
[1738873306726,38.41573004,191.28,191.27,1.3631]
[1738873306957,38.41573004,191.29,191.28,1.0]
[1738873307429,38.41573004,191.29,191.26,0.063]
[1738873307641,38.41573004,191.28,191.27,0.3631]
[1738873308032,38.41573004,191.28,191.26,1.063]
[1738873308231,38.41573004,191.27,191.26,0.063]
[1738873308429,39.98413004,191.27,191.26,0.063]
[1738873309457,90.82768,191.33,191.27,1.3631]
[1738873309458,38.41573004,191.29,191.27,1.3631]
[1738873309620,39.98393004,191.29,191.27,1.3631]
[1738873310024,38.41573004,191.28,191.26,1.063]
[1738873310243,38.41573004,191.27,191.26,1.063]
[1738873310445,39.98413004,191.27,191.26,0.063]
[1738873311032,39.98413004,191.27,191.26,1.063]
[1738873311937,38.41573004,191.32,191.3,1.0]
[1738873312150,83.668,191.33,191.32,1.0]
[1738873312367,38.41573004,191.34,191.33,0.3631]
[1738873312657,38.41573004,191.34,191.33,1.0]
[1738873312840,38.41573004,191.34,191.33,1.3631]
[1738873313656,39.98343004,191.37,191.35,1.3631]
[1738873313860,39.98323004,191.38,191.37,0.3631]
[1738873315155,38.41573004,191.38,191.37,0.3631]
[1738873315361,0.20083018,191.39,191.38,1.3631]
[1738873315977,38.61656022,191.39,191.38,1.0]
[1738873316324,38.61656022,191.39,191.38,1.3631]
[1738873316530,38.51705776,191.39,191.38,1.3631]
[1738873316731,40.08445776,191.39,191.37,1.0]
[1738873316931,38.41573004,191.38,191.36,1.0]
[1738873317162,1.66872772,191.39,191.36,0.3631]
[1738873317163,38.41573004,191.37,191.36,0.3631]
[1738873317455,38.41573004,191.37,191.33,1.3631]
[1738873317639,38.41573004,191.34,191.32,1.3631]
[1738873317955,38.41573004,191.33,191.31,1.3631]
[1738873318558,38.41573004,191.32,191.29,1.063]
[1738873318772,39.98393004,191.3,191.29,0.063]
[1738873318938,91.81150861,191.3,191.29,0.063]
[1738873319128,39.98393004,191.3,191.29,0.063]
[1738873319342,78.39966008,191.3,191.29,0.063]
[1738873319555,96.61988861,191.3,191.26,0.063]
[1738873319758,38.41573004,191.27,191.26,0.063]
[1738873320767,38.41573004,191.29,191.27,1.3631]
[1738873320938,39.98363004,191.33,191.31,1.0]
[1738873321132,39.98363004,191.33,191.3,0.3631]
[1738873321133,38.41573004,191.34,191.32,1.3631]
[1738873321339,38.41573004,191.34,191.32,1.0]
[1738873321838,38.41573004,191.33,191.32,1.0]
[1738873322471,39.98363004,191.33,191.32,1.0]
[1738873322758,39.98363004,191.33,191.28,1.3631]
[1738873323063,38.41573004,191.29,191.26,1.4261]
[1738873323258,1.5679,191.33,191.26,1.4261]
[1738873323259,38.41573004,191.28,191.26,1.4261]
[1738873323498,38.41573004,191.28,191.27,1.3631]
[1738873323765,38.41573004,191.28,191.26,0.063]
[1738873323938,38.41573004,191.27,191.26,0.063]
[1738873324437,39.98413004,191.27,191.26,0.063]
[1738873324639,53.39597857,191.27,191.26,0.063]
[1738873325356,20.0,191.24,191.22,0.063]
[1738873325551,38.41573004,191.23,191.22,0.063]
[1738873326555,53.39627857,191.23,191.22,0.063]
[1738873326932,54.28415857,191.23,191.22,0.0001]
[1738873327285,53.39627857,191.23,191.22,0.0001]
[1738873327588,54.28415857,191.23,191.22,0.0001]
[1738873327749,53.64725857,191.23,191.22,0.0001]
[1738873328254,53.39627857,191.23,191.22,0.0001]
[1738873329154,53.64725857,191.23,191.22,0.0001]
[1738873329555,54.28415857,191.23,191.22,0.0001]
[1738873330272,92.82537861,191.23,191.22,0.0001]
[1738873330468,54.28415857,191.23,191.22,0.0001]
[1738873330670,39.54331488,191.23,191.22,0.0001]
[1738873331849,38.90641488,191.23,191.22,0.0001]
[1738873332054,39.54331488,191.23,191.22,0.0001]
[1738873332385,35.23192853,191.19,191.18,0.063]
[1738873332561,35.23192853,191.19,191.09,1.4261]
[1738873332562,23.67488635,191.14,191.09,1.4261]
[1738873332875,23.67488635,191.14,191.09,0.063]
[1738873332876,37.08673488,191.14,191.09,0.063]
[1738873333081,37.08673488,191.14,191.09,0.4261]
[1738873333288,37.97461488,191.14,191.09,0.063]
[1738873333456,23.67488635,191.1,191.09,0.063]
[1738873334180,23.67488635,191.11,191.1,0.3631]
[1738873334375,23.67488635,191.11,191.09,1.4261]
[1738873334574,23.67488635,191.1,191.09,1.4261]
[1738873335079,23.67488635,191.13,191.11,1.3631]
[1738873335284,82.1,191.17,191.14,0.3631]
[1738873335285,0.11078608,191.15,191.14,0.3631]
[1738873335493,0.11078608,191.15,191.14,1.3631]
[1738873336765,38.58371604,191.15,191.14,1.3631]
[1738873337462,0.11078608,191.15,191.14,1.3631]
[1738873337978,40.15311604,191.15,191.11,0.3631]
[1738873338167,1.68018608,191.15,191.14,0.3631]
[1738873338361,0.11078608,191.15,191.14,1.3631]
[1738873338886,1.68018608,191.15,191.12,0.3631]
[1738873339059,1.68018608,191.15,191.13,0.3631]
[1738873339380,38.47292996,191.14,191.13,0.3631]
[1738873339762,0.11078608,191.15,191.14,1.3631]
[1738873341008,1.68018608,191.15,191.14,1.0]
[1738873341170,1.68018608,191.15,191.14,0.3631]
[1738873341171,40.15311604,191.15,191.14,0.3631]
[1738873341495,40.15311604,191.15,191.13,1.0]
[1738873341869,38.47292996,191.14,191.12,1.3631]
[1738873342076,38.47292996,191.13,191.12,1.3631]
[1738873342283,38.47292996,191.13,191.12,0.3631]
[1738873342495,40.04252996,191.13,191.09,1.4261]
[1738873342693,38.47292996,191.1,191.09,0.063]
[1738873343008,90.35770845,191.1,191.09,0.063]
[1738873343803,91.24558845,191.1,191.09,0.0001]
[1738873344693,92.94087845,191.1,191.09,0.0001]
[1738873345484,71.88477849,191.07,191.06,0.0001]
[1738873345816,72.52167849,191.07,191.06,0.0001]
[1738873346199,71.88477849,191.07,191.06,0.0001]
[1738873346704,74.09177849,191.07,191.06,0.0001]
[1738873346910,80.55764849,191.07,191.06,0.0001]
[1738873347203,13.41184853,191.02,191.0,0.063]
[1738873347409,0.6369,191.04,191.0,0.063]
[1738873347410,90.35770845,191.01,191.0,0.063]
[1738873347805,90.35770845,191.01,190.99,0.063]
[1738873347806,14.04874853,191.0,190.99,0.0001]
[1738873348012,90.99460845,191.0,190.99,0.0001]
[1738873348311,51.88477849,191.0,190.99,0.0001]
[1738873348611,91.92830845,191.0,190.99,0.0001]
[1738873348809,92.81618845,191.0,190.99,0.0001]
[1738873349613,92.17928845,191.0,190.99,0.0001]
[1738873350005,91.92830845,191.0,190.99,0.0001]
[1738873350206,40.04352996,191.0,190.99,0.3632]
[1738873350411,40.04352996,191.0,190.99,0.0001]
[1738873350718,53.45537849,191.0,190.99,0.0001]
[1738873350919,92.17928845,191.0,190.99,0.0001]
[1738873351303,92.81618845,191.0,190.99,0.0001]
[1738873351805,92.17928845,191.0,190.99,0.0001]
[1738873352123,53.45537849,191.0,190.99,0.0001]
[1738873352825,0.6369,190.97,190.95,0.063]
[1738873353015,0.6369,190.97,190.95,0.0001]
[1738873353016,34.29972853,190.96,190.95,0.0001]
[1738873353211,72.13575849,190.96,190.95,0.0001]
[1738873353727,72.77265849,190.96,190.95,0.0001]
[1738873354029,20.0,190.92,190.91,0.0001]
[1738873354238,72.13575849,190.92,190.91,0.0001]
[1738873354720,73.70705849,190.92,190.91,0.0001]
[1738873354929,73.45607849,190.92,190.91,0.0001]
[1738873355439,73.55836566,190.92,190.91,0.0001]
[1738873355595,73.80934566,190.92,190.91,0.0001]
[1738873355800,73.80934566,190.92,190.89,0.0001]
[1738873355801,0.25098,190.9,190.89,0.0001]
[1738873356028,90.60868845,190.9,190.89,0.0001]
[1738873356522,91.24558845,190.9,190.89,0.0001]
[1738873356816,0.25098,190.88,190.87,0.0001]
[1738873357029,52.13575849,190.88,190.87,0.0001]
[1738873357515,38.47292996,190.88,190.87,0.3632]
[1738873357720,40.04432996,190.91,190.89,1.3631]
[1738873357911,38.47292996,190.9,190.89,1.3631]
[1738873358923,20.0,190.88,190.87,0.0001]
[1738873359108,20.0,190.84,190.79,0.3631]
[1738873359420,13.41184853,190.87,190.75,0.3631]
[1738873359421,13.41184853,190.8,190.75,0.3631]
[1738873359618,20.0,190.83,190.79,0.3631]
[1738873359804,20.0,190.83,190.78,1.0]
[1738873360012,20.0,190.79,190.78,1.0]
[1738873360328,20.0,190.79,190.78,1.3631]
[1738873360521,0.25098,190.85,190.79,1.3631]
[1738873360817,84.01647616,190.89,190.72,5.243]
[1738873360818,38.47292996,190.82,190.81,1.3631]
[1738873361038,38.47292996,190.84,190.82,1.3631]
[1738873361231,38.47292996,190.84,190.83,1.3631]
[1738873361527,40.04482996,190.84,190.83,1.3631]
[1738873362407,40.04482996,190.84,190.83,1.0]
[1738873362622,40.04482996,190.84,190.82,1.3631]
[1738873362802,13.41184853,190.88,190.81,1.3631]
[1738873362803,38.47292996,190.83,190.81,1.3631]
[1738873363012,38.47292996,190.82,190.81,1.3631]
[1738873364822,38.47292996,190.82,190.8,1.3631]
[1738873364823,40.04502996,190.82,190.8,1.3631]
[1738873365035,38.47292996,190.81,190.8,1.3631]
[1738873365953,38.47292996,190.84,190.83,1.0]
[1738873366231,38.47292996,190.84,190.83,1.3631]
[1738873366425,40.04482996,190.84,190.83,1.3631]
[1738873367125,38.47292996,190.85,190.84,1.3631]
[1738873367422,38.47292996,190.87,190.86,1.3631]
[1738873368117,38.47292996,190.87,190.79,38.47292996]
[1738873368118,21.5716,190.89,190.88,0.3631]
[1738873368323,60.04452996,190.89,190.88,0.3631]
[1738873368520,17.4425357,190.92,190.89,1.3631]
[1738873368521,38.47292996,190.9,190.89,1.3631]
[1738873370526,53.45627849,190.9,190.87,1.0]
[1738873370723,58.47292996,190.88,190.85,1.0]
[1738873371031,38.47292996,190.86,190.85,1.0]
[1738873371324,38.47292996,190.86,190.85,1.3631]
[1738873373236,40.04462996,190.87,190.86,1.3631]
[1738873373541,38.47292996,190.87,190.86,1.3631]
[1738873374832,23.74905039,190.87,190.86,1.3631]
[1738873375231,23.84490298,190.87,190.86,0.3631]
[1738873375420,23.84490298,190.87,190.85,0.3631]
[1738873375624,23.74905039,190.86,190.85,0.3631]
[1738873375810,5.53261947,190.86,190.85,0.3631]
[1738873376013,5.53261947,190.86,190.85,1.3631]
[1738873376430,0.09585259,190.87,190.86,1.3631]
[1738873377736,25.41660298,190.87,190.86,1.3631]
[1738873378738,23.84490298,190.87,190.86,1.3631]
[1738873378932,0.09585259,190.87,190.86,1.3631]
[1738873380428,23.84490298,190.87,190.86,1.3631]
[1738873381338,0.09585259,190.87,190.86,1.3631]
[1738873382635,25.41660298,190.87,190.86,1.3631]
[1738873384940,0.09585259,190.87,190.86,1.3631]
[1738873385320,0.09585259,190.87,190.86,6.6025]
[1738873385522,0.09585259,190.87,190.86,30.35155039]
[1738873385913,0.09585259,190.87,190.86,30.60253039]
[1738873387542,0.15885259,190.87,190.86,30.60253039]
[1738873388728,0.09713698,190.89,190.88,1.3631]
[1738873388917,0.09875305,190.9,190.89,16.27690853]
[1738873389238,0.10208542,190.91,190.9,2.86506]
[1738873389543,0.10208542,190.91,190.9,5.97565715]
[1738873390439,0.10208542,190.91,190.9,11.21395715]
[1738873391065,0.10208542,190.91,190.9,9.88877111]
[1738873391556,0.10208542,190.91,190.9,32.6378215]
[1738873391737,0.11303001,190.93,190.91,1.3631]
[1738873392043,0.11303001,190.93,190.91,25.08519853]
[1738873392249,0.11303001,190.93,190.91,25.33617853]
[1738873392628,0.11303001,190.93,190.91,30.57417853]
[1738873393637,0.11303001,190.93,190.91,1.3631]
[1738873394038,1.67546153,190.92,190.91,1.3631]
[1738873394857,1.67546153,190.92,190.91,0.3631]
[1738873395040,21.67546153,190.92,190.88,1.3631]
[1738873395356,25.71094874,190.92,190.87,1.3631]
[1738873395552,13.41184853,190.91,190.86,1.0]
[1738873395963,13.41184853,190.91,190.85,1.3631]
[1738873396335,13.41184853,190.91,190.86,1.0]
[1738873396635,13.41184853,190.91,190.85,1.0]
[1738873396938,1.5715,190.9,190.85,1.0]
[1738873397260,1.5715,190.9,190.85,1.3631]
[1738873398261,1.5715,190.9,190.87,1.3631]
[1738873399469,1.5715,190.9,190.87,0.3631]
[1738873399757,1.5715,190.9,190.86,1.03]
[1738873399966,1.5715,190.9,190.87,0.3631]
[1738873401550,1.5715,190.9,190.87,1.3631]
[1738873401756,5.5002,190.9,190.86,1.03]
[1738873401939,5.5002,190.9,190.87,1.3631]
[1738873402964,5.5002,190.9,190.87,0.3631]
[1738873403574,0.17018721,190.92,190.89,0.3631]
[1738873403871,0.17018721,190.92,190.91,1.3631]
[1738873404368,1.74148721,190.92,190.91,1.3631]
[1738873404860,1.74148721,190.92,190.91,1.0]
[1738873405258,1.74148721,190.92,190.88,1.3631]
[1738873405456,20.0,190.91,190.87,0.3631]
[1738873405667,20.0,190.91,190.86,1.03]
[1738873405668,13.41184853,190.91,190.86,0.03]
[1738873406170,33.41184853,190.91,190.86,0.03]
[1738873406554,5.5002,190.9,190.86,0.03]
[1738873407862,5.5002,190.9,190.87,0.3631]
[1738873408052,5.5002,190.9,190.89,1.0]
[1738873409162,5.5002,190.9,190.86,1.3931]
[1738873410047,5.5002,190.9,190.86,0.03]
[1738873410648,5.5002,190.9,190.86,1.03]
[1738873411071,5.5002,190.9,190.86,0.03]
[1738873411377,5.5002,190.9,190.87,1.0]
[1738873411582,5.5002,190.9,190.87,1.3631]
[1738873411787,5.5002,190.9,190.87,1.0]
[1738873412791,13.41184853,190.89,190.86,0.03]
[1738873414188,1.5716,190.88,190.86,1.03]
[1738873414680,1.5716,190.88,190.86,0.03]
[1738873414880,1.5716,190.88,190.86,1.03]
[1738873415179,1.5716,190.88,190.86,0.03]
[1738873415384,1.67802333,190.87,190.86,0.03]
[1738873416279,21.67802333,190.87,190.86,0.03]
[1738873416482,35.08987186,190.87,190.86,0.03]
[1738873417558,0.25098,190.86,190.81,1.3631]
[1738873417766,20.0,190.83,190.8,1.3931]
[1738873417986,20.0,190.83,190.8,0.03]
[1738873418664,0.25098,190.84,190.8,0.03]
[1738873419371,0.25098,190.82,190.8,0.03]
[1738873419873,14.98404853,190.81,190.8,0.03]
[1738873422286,1.572,190.83,190.82,0.3631]
[1738873422465,1.572,190.83,190.82,0.8631]
[1738873423166,1.5718,190.86,190.85,0.8631]